bitfinex-derivatives/quotes_ETHF0:USTF0_20241022
["timestamp","ask_amount","ask_price","bid_price","bid_amount"]
[1729582153685,1.45644,2658.2,2658.1,0.37645]
[1729582154288,1.08,2658.2,2658.1,0.37645]
[1729582156785,1.08,2658.2,2657.6,3.2078]
[1729582157094,1.08,2657.7,2657.6,3.58432]
[1729582157485,1.08,2657.7,2657.6,7.34672]
[1729582159387,1.08,2657.7,2657.6,7.46446681]
[1729582159587,1.08,2657.7,2657.6,7.34672]
[1729582160292,1.08,2657.7,2657.6,7.46446733]
[1729582160798,1.08,2657.7,2657.6,7.34672]
[1729582161184,1.08,2657.7,2657.6,7.46446689]
[1729582161580,1.08,2657.7,2657.6,8.3316648]
[1729582161796,1.08,2657.7,2657.6,8.44940901]
[1729582162292,1.08,2657.7,2657.6,5.24160901]
[1729582162493,1.08,2657.7,2657.6,7.46446421]
[1729582162699,1.08,2657.7,2657.6,7.34672]
[1729582165788,1.08,2657.7,2657.6,7.46446769]
[1729582166795,1.08,2657.7,2657.6,7.34672]
[1729582167699,1.08,2657.7,2657.6,7.46446724]
[1729582168898,1.08,2657.7,2657.6,7.34672]
[1729582169198,1.08,2657.7,2657.6,7.46446707]
[1729582169596,1.08,2657.7,2657.6,7.34672]
[1729582169997,1.08,2657.7,2657.6,7.46446594]
[1729582170695,1.08,2657.7,2657.6,4.25666594]
[1729582171001,1.08,2657.7,2657.6,7.34672]
[1729582174705,1.08,2657.7,2657.6,3.58432]
[1729582176297,2.16,2657.7,2657.6,3.58432]
[1729582176598,1.08,2657.7,2657.6,0.37652]
[1729582179005,2.16,2657.7,2657.6,0.37652]
[1729582179510,1.08,2657.7,2657.6,0.37652]
[1729582182016,2.16,2657.7,2657.6,0.37652]
[1729582183209,2.53651,2657.7,2657.5,3.2078]
[1729582183505,2.53651,2657.7,2657.5,3.58432]
[1729582183506,1.08,2657.6,2657.5,3.58432]
[1729582184511,1.45652,2657.6,2657.4,0.37654]
[1729582184810,1.45654,2657.5,2657.2,3.2078]
[1729582185017,1.45654,2657.5,2657.3,0.37656]
[1729582185018,0.37654,2657.5,2657.3,0.37656]
[1729582186113,1.08,2657.4,2657.3,0.37656]
[1729582186412,1.45656,2657.4,2657.3,0.37656]
[1729582186605,1.45656,2657.4,2657.2,3.2078]
[1729582186807,1.08,2657.3,2657.2,3.58437]
[1729582187710,1.08,2657.3,2657.2,0.37657]
[1729582193621,1.08,2657.3,2657.0,40.8]
[1729582193817,1.08,2657.1,2657.0,41.1766]
[1729582199121,3.2078,2657.5,2657.4,0.37655]
[1729582199322,1.08,2657.5,2657.4,0.37655]
[1729582200627,1.45653,2657.5,2657.4,0.37655]
[1729582201032,1.08,2657.5,2657.4,0.37655]
[1729582201229,1.45653,2657.5,2657.4,0.37655]
[1729582201431,1.08,2657.5,2657.4,0.37655]
[1729582203323,1.08,2657.5,2657.0,40.8]
[1729582203527,1.08,2657.7,2657.0,41.1766]
[1729582203528,1.08,2657.1,2657.0,41.1766]
[1729582204025,1.08,2657.1,2657.0,44.9398]
[1729582204229,3.2078,2657.8,2657.0,44.5632]
[1729582204542,1.08,2657.1,2657.0,40.8]
[1729582204733,1.08,2657.1,2657.0,41.1766]
[1729582204931,1.08,2657.1,2657.0,44.9398]
[1729582206333,1.08,2657.1,2657.0,48.1476]
[1729582207634,1.08,2657.1,2657.0,44.9398]
[1729582207835,1.08,2657.1,2657.0,48.1476]
[1729582209531,1.08,2657.1,2657.0,44.3844]
[1729582209737,1.08,2657.1,2657.0,0.3766]
[1729582210726,1.08,2657.1,2657.0,4.1398]
[1729582211139,3.2078,2657.4,2656.8,41.74157]
[1729582211336,1.08,2657.0,2656.9,1.08]
[1729582211531,1.08,2657.0,2656.9,0.37662]
[1729582211733,1.08,2657.0,2656.9,4.14062]
[1729582216639,0.37656,2657.4,2657.1,0.37658]
[1729582216839,1.08,2657.2,2657.1,0.37658]
[1729582217237,1.08,2657.2,2656.8,40.8]
[1729582217431,1.08,2656.9,2656.8,41.17663]
[1729582217833,1.08,2656.9,2656.8,44.94063]
[1729582218440,1.08,2656.9,2656.8,46.02063]
[1729582219745,1.08,2656.9,2656.8,44.94063]
[1729582219944,1.08,2656.9,2656.8,46.02063]
[1729582220337,1.08,2656.9,2656.8,44.94063]
[1729582223745,1.08,2656.9,2656.8,41.17663]
[1729582251287,1.08,2656.9,2656.8,44.38443]
[1729582260191,1.08,2656.9,2656.8,41.17663]
[1729582260385,1.08,2656.9,2656.8,44.38443]
[1729582267402,1.08,2657.2,2656.9,1.31817]
[1729582267593,5.169,2657.7,2656.8,50.2133748]
[1729582267594,1.08,2657.3,2657.2,0.37658]
[1729582267901,4.089,2657.7,2657.6,0.37652]
[1729582268106,1.08,2657.7,2657.6,0.37652]
[1729582268292,1.08,2657.7,2657.5,3.2078]
[1729582268498,1.08,2657.6,2657.5,3.58433]
[1729582271799,0.37648,2657.9,2657.5,3.2078]
[1729582271996,1.08,2657.6,2657.5,3.2078]
[1729582272206,1.08,2657.6,2657.5,3.58433]
[1729582272804,0.879,2658.1,2657.5,3.2078]
[1729582273006,1.08,2657.6,2657.5,3.58433]
[1729582273508,0.37645,2658.1,2657.9,0.37647]
[1729582273808,1.08,2658.0,2657.9,0.37647]
[1729582274201,4.8424,2658.0,2657.9,0.37647]
[1729582274699,1.08,2658.0,2657.9,0.37647]
[1729582275406,1.45646,2658.0,2657.9,0.37647]
[1729582275600,1.45646,2658.0,2657.9,0.37648]
[1729582278501,4.46324,2658.2,2658.1,0.37645]
[1729582278701,9.30564,2658.2,2658.1,0.37645]
[1729582281506,8.42664,2658.2,2658.1,0.37645]
[1729582281707,7.34664,2658.2,2658.1,0.37645]
[1729582282005,8.42664,2658.2,2658.1,0.37645]
[1729582284015,4.2878,2658.2,2658.1,0.37645]
[1729582284214,4.66423,2658.2,2658.1,0.37645]
[1729582284510,1.08,2658.2,2658.1,0.37645]
[1729582288314,1.45643,2658.2,2658.1,0.37645]
[1729582288815,1.08,2658.2,2658.1,0.37645]
[1729582289113,1.45643,2658.2,2658.1,0.37645]
[1729582289513,1.45643,2658.2,2657.8,44.0078]
[1729582289514,4.8424,2658.2,2657.8,44.0078]
[1729582289819,1.45648,2657.9,2657.8,0.37648]
[1729582290006,0.3765,2657.8,2657.7,0.3765]
[1729582290210,1.08,2657.8,2657.7,0.3765]
[1729582290919,1.45649,2657.8,2657.7,0.3765]
[1729582291411,1.08,2657.8,2657.4,41.88]
[1729582291607,1.08,2657.5,2657.4,45.46435]
[1729582292204,1.08,2657.5,2657.4,49.22755]
[1729582292611,1.08,2657.5,2657.4,45.46435]
[1729582295722,0.37656,2657.3,2657.0,3.58439]
[1729582296017,1.08,2657.5,2657.0,3.2078]
[1729582296018,1.45659,2657.1,2657.0,3.2078]
[1729582296210,1.08,2657.1,2657.0,3.2078]
[1729582296418,1.45659,2657.1,2657.0,3.2078]
[1729582297417,1.08,2657.1,2657.0,3.2078]
[1729582297619,1.45659,2657.1,2657.0,3.2078]
[1729582298019,0.37663,2656.9,2656.6,3.2078]
[1729582298327,1.08,2656.7,2656.6,0.37666]
[1729582304613,3.2078,2657.0,2656.5,41.88]
[1729582304922,3.2078,2657.0,2656.9,0.37662]
[1729582305117,4.2878,2657.0,2656.9,0.37662]
[1729582306521,1.08,2657.0,2656.9,0.37662]
[1729582312327,1.08,2657.0,2656.9,1.45662]
[1729582314826,1.08,2657.0,2656.9,0.37662]
[1729582324336,3.2078,2657.3,2657.2,0.37658]
[1729582324534,4.2878,2657.3,2657.2,0.37658]
[1729582325935,3.2078,2657.3,2657.2,0.37658]
[1729582326139,4.2878,2657.3,2657.2,0.37658]
[1729582328032,4.66436,2657.3,2657.2,0.37658]
[1729582328237,4.2878,2657.3,2657.2,0.37658]
[1729582328645,1.08,2657.3,2657.2,0.37658]
[1729582334244,1.45656,2657.3,2657.2,0.37658]
[1729582334952,1.08,2657.3,2656.8,5.22938]
[1729582335255,0.37658,2657.2,2657.1,0.37658]
[1729582335951,3.2078,2657.5,2656.8,3.2078]
[1729582336156,0.37666,2656.7,2656.6,0.37666]
[1729582336460,1.45665,2656.7,2656.6,0.37666]
[1729582336652,1.45665,2656.7,2656.5,0.37667]
[1729582336851,1.08,2656.6,2656.5,0.37667]
[1729582340758,1.08,2656.6,2656.2,4.2878]
[1729582340759,1.45667,2656.6,2656.4,0.37668]
[1729582341061,1.08,2656.5,2656.4,0.37668]
[1729582345451,1.08,2656.5,2656.2,0.37672]
[1729582345452,1.45668,2656.5,2656.2,0.37672]
[1729582345657,1.08,2656.3,2656.2,1.45672]
[1729582346164,1.08,2656.3,2656.2,41.17672]
[1729582347064,1.08,2656.3,2655.8,3.2078]
[1729582347065,2.16,2656.3,2655.8,3.2078]
[1729582347270,1.08,2655.9,2655.8,3.58457]
[1729582347462,1.08,2655.9,2655.8,44.38457]
[1729582349265,1.08,2655.9,2655.4,4.2878]
[1729582349467,1.08,2655.5,2655.4,1.45683]
[1729582349664,1.08,2655.5,2655.4,42.25683]
[1729582349971,1.08,2655.5,2655.4,49.22833776]
[1729582350263,1.08,2655.5,2655.4,49.23023]
[1729582351865,1.08,2655.6,2655.5,0.37682]
[1729582352062,1.08,2655.6,2655.5,1.45682]
[1729582352264,1.08,2655.6,2655.5,5.22242]
[1729582352962,1.08,2655.7,2655.6,0.3768]
[1729582353165,1.08,2655.7,2655.6,1.4568]
[1729582356365,1.08,2655.7,2655.6,0.3768]
[1729582367086,4.8456,2655.7,2655.5,0.37681]
[1729582367281,1.08,2655.6,2655.5,0.37682]
[1729582367575,1.08,2655.6,2655.1,3.2078]
[1729582367576,1.08,2655.6,2655.4,0.37683]
[1729582367881,1.08,2655.5,2655.4,0.37683]
[1729582369173,0.39069022,2656.3,2655.4,1.08]
[1729582369174,3.2078,2656.2,2655.4,1.08]
[1729582369385,0.878,2656.1,2655.5,1.08]
[1729582369592,1.08,2655.6,2655.5,0.37682]
[1729582369884,1.08,2655.6,2655.5,1.45682]
[1729582372389,4.8456,2655.6,2655.5,0.37682]
[1729582374486,1.08,2655.6,2655.5,0.37682]
[1729582385400,4.8456,2655.6,2655.1,3.2078]
[1729582385605,1.08,2655.2,2655.1,3.58467]
[1729582386096,0.37678,2655.8,2655.5,0.37681]
[1729582386299,1.08,2655.6,2655.5,0.37681]
[1729582388392,4.8456,2655.6,2655.5,0.37681]
[1729582391993,4.0848,2655.8,2655.2,1.08]
[1729582392208,1.08,2655.4,2655.3,0.37685]
[1729582393009,0.877,2655.8,2655.3,0.37685]
[1729582393010,1.08,2655.6,2655.5,0.37682]
[1729582399106,1.08,2655.7,2655.5,1.08]
[1729582399303,5.1648,2656.1,2655.6,1.4568]
[1729582399503,5.1648,2656.1,2655.6,0.3768]
[1729582399709,5.1648,2656.1,2655.9,0.37675]
[1729582400514,5.1648,2656.1,2656.0,0.37675]
[1729582400713,6.2448,2656.1,2656.0,0.37675]
[1729582400906,10.0096,2656.1,2656.0,0.37675]
[1729582401804,10.38633,2656.1,2656.0,0.37675]
[1729582402008,10.0096,2656.1,2655.6,0.3768]
[1729582402208,1.08,2655.7,2655.6,0.3768]
[1729582404801,5.2224,2655.7,2655.4,0.37682]
[1729582405002,1.08,2655.5,2655.4,0.37682]
[1729582411513,1.08,2655.5,2655.3,0.37684]
[1729582411514,1.45682,2655.5,2655.3,0.37684]
[1729582411714,1.08,2655.4,2655.3,0.37684]
[1729582413425,1.08,2655.4,2655.2,3.2078]
[1729582413627,1.08,2655.3,2655.2,3.58465]
[1729582420828,1.08,2655.3,2655.2,3.2078]
[1729582421326,2.16,2655.3,2655.2,3.2078]
[1729582421623,1.08,2655.3,2655.2,3.2078]
[1729582421923,1.08,2655.3,2655.2,3.58466]
[1729582422623,1.45685,2655.3,2655.2,3.2078]
[1729582423029,1.08,2655.3,2655.2,3.58466]
[1729582423625,1.08,2655.3,2655.2,3.2078]
[1729582423821,1.45685,2655.3,2655.2,3.2078]
[1729582424028,2.53685,2655.3,2655.2,3.2078]
[1729582424229,1.45685,2655.3,2655.2,3.2078]
[1729582424421,2.53685,2655.3,2655.2,3.2078]
[1729582424725,1.08,2655.3,2655.2,3.2078]
[1729582424924,1.45685,2655.3,2655.2,3.2078]
[1729582425124,2.16,2655.3,2655.2,3.2078]
[1729582425524,1.08,2655.3,2655.2,3.58466]
[1729582426923,1.45685,2655.3,2655.2,3.2078]
[1729582427231,1.45685,2655.3,2655.2,3.58466]
[1729582427530,0.37684,2655.4,2655.2,3.58465]
[1729582427727,1.08,2655.3,2655.2,3.58465]
[1729582430725,0.37684,2655.4,2655.3,0.37684]
[1729582430925,1.45684,2655.4,2655.3,0.37684]
[1729582432336,1.08,2655.4,2655.3,0.37684]
[1729582433631,1.45683,2655.4,2655.3,0.37684]
[1729582433848,1.08,2655.4,2655.3,0.37684]
[1729582434130,1.45683,2655.4,2655.3,0.37684]
[1729582435942,0.37682,2655.5,2655.4,0.37682]
[1729582436130,1.45682,2655.5,2655.4,0.37682]
[1729582436435,5.22242,2655.5,2655.4,0.37682]
[1729582437434,0.37684,2655.4,2655.3,0.37683]
[1729582437637,1.45684,2655.4,2655.3,0.37683]
[1729582438035,1.08,2655.4,2655.3,0.37683]
[1729582439240,1.45683,2655.4,2655.3,0.37683]
[1729582440248,3.2078,2655.7,2655.6,0.3768]
[1729582440440,1.08,2655.7,2655.6,1.4568]
[1729582440640,14.2238,2656.0,2655.9,0.37676]
[1729582440837,15.3038,2656.0,2655.9,0.37676]
[1729582442541,4.2878,2656.0,2655.9,0.37676]
[1729582443344,1.08,2656.0,2655.9,0.37676]
[1729582450343,3.2078,2656.1,2656.0,0.37675]
[1729582450544,4.2878,2656.1,2656.0,0.37675]
[1729582451346,5.74453,2656.1,2656.0,0.37675]
[1729582452840,5.74453,2656.1,2655.6,1.4568]
[1729582452841,0.37677,2655.9,2655.6,0.3768]
[1729582453039,1.45679,2655.7,2655.6,0.3768]
[1729582453243,1.08,2655.7,2655.2,4.2878]
[1729582453442,1.08,2655.3,2655.2,4.66466]
[1729582455345,1.08,2655.3,2655.2,3.58466]
[1729582458650,1.08,2655.3,2655.2,4.66466]
[1729582458849,1.08,2655.4,2655.2,4.2878]
[1729582459048,0.94176,2656.4,2655.3,1.08]
[1729582459049,1.08,2655.6,2655.3,1.08]
[1729582459244,1.08,2655.6,2655.5,4.66462]
[1729582459948,1.08,2655.6,2655.5,8.43022]
[1729582460142,1.08,2655.6,2655.5,4.66462]
[1729582460350,1.08,2655.6,2655.5,3.58462]
[1729582464748,1.08,2655.6,2655.5,0.37682]
[1729582464950,1.08,2655.6,2655.5,3.58462]
[1729582465958,1.08,2655.6,2655.5,0.37682]
[1729582466257,1.08,2655.6,2655.5,3.58462]
[1729582468263,1.08,2655.6,2655.5,0.37682]
[1729582476661,1.08,2655.6,2655.5,3.58462]
[1729582478153,1.08,2655.6,2655.5,0.37682]
[1729582478567,1.08,2655.6,2655.5,3.58462]
[1729582482565,1.08,2655.6,2655.5,0.37682]
[1729582488169,4.0828,2656.1,2655.8,0.37677]
[1729582488471,1.08,2655.9,2655.8,0.37677]
[1729582490670,1.08,2655.9,2655.4,3.2078]
[1729582490671,5.22237,2655.9,2655.4,3.2078]
[1729582490861,1.08,2655.5,2655.4,3.58463]
[1729582493374,1.08,2655.5,2655.4,4.66463]
[1729582493776,1.08,2655.6,2655.4,4.2878]
[1729582493972,1.08,2655.6,2655.5,0.37682]
[1729582495576,1.08,2655.7,2655.5,1.08]
[1729582495773,1.08,2655.7,2655.6,1.4568]
[1729582496463,1.08,2655.7,2655.6,1.08]
[1729582496665,1.08,2655.7,2655.6,1.4568]
[1729582497871,3.2078,2656.1,2655.7,0.37679]
[1729582498175,3.2078,2656.1,2655.6,1.4568]
[1729582498176,1.08,2655.7,2655.6,1.4568]
[1729582500078,3.2078,2656.1,2656.0,0.37675]
[1729582500270,3.2078,2656.1,2656.0,1.45675]
[1729582500481,3.2078,2656.5,2656.4,0.37668]
[1729582500670,4.2878,2656.5,2656.4,0.37668]
[1729582501477,1.08,2656.5,2656.4,3.58448]
[1729582501674,1.08,2656.5,2656.4,4.66448]
[1729582502078,1.08,2656.5,2656.4,4.66449]
[1729582503378,1.08,2656.5,2656.4,3.58449]
[1729582503770,1.08,2656.5,2656.4,4.66449]
[1729582507082,0.875,2657.0,2656.9,0.37662]
[1729582507284,1.955,2657.0,2656.8,0.37662]
[1729582507580,0.875,2657.0,2656.9,0.37661]
[1729582508171,1.955,2657.0,2656.9,0.37661]
[1729582508571,5.719,2657.0,2656.5,1.08]
[1729582508773,1.08,2656.6,2656.5,1.45668]
[1729582510081,3.2078,2657.1,2657.0,0.3766]
[1729582510275,4.2878,2657.1,2657.0,0.3766]
[1729582510474,9.131,2657.1,2656.5,0.37668]
[1729582510681,1.08,2656.6,2656.5,0.37668]
[1729582521989,1.08,2656.6,2656.5,3.58448]
[1729582527206,1.08,2656.6,2656.5,0.37668]
[1729582527405,1.08,2656.6,2656.5,3.58448]
[1729582530101,1.08,2656.6,2656.5,4.66448]
[1729582534301,1.08,2656.6,2656.5,4.2878]
[1729582534507,1.08,2656.6,2656.5,4.66448]
[1729582542502,1.08,2656.6,2656.5,1.45668]
[1729582542705,1.08,2656.6,2656.5,4.66448]
[1729582549513,1.08,2656.6,2656.5,3.58448]
[1729582550216,4.844,2656.6,2656.3,0.37669]
[1729582550412,1.08,2656.4,2656.3,0.3767]
[1729582552718,0.873,2657.0,2656.3,1.08]
[1729582552719,1.08,2656.6,2656.3,1.08]
[1729582552913,1.08,2656.6,2656.5,4.66447]
[1729582553649,1.08,2656.6,2656.5,3.58447]
[1729582553836,1.08,2656.6,2656.5,0.37667]
[1729582560519,3.2078,2657.0,2656.5,2.02168]
[1729582560716,3.5844,2657.0,2656.9,0.37662]
[1729582560914,4.6644,2657.0,2656.9,0.37662]
[1729582563313,4.2878,2657.0,2656.9,0.37662]
[1729582566518,3.2078,2657.0,2656.9,0.37662]
[1729582566725,4.2878,2657.0,2656.9,0.37662]
[1729582568519,4.6644,2657.0,2656.9,0.37662]
[1729582569120,4.2878,2657.0,2656.9,0.37662]
[1729582569836,4.2878,2657.0,2656.6,1.08]
[1729582570134,0.37662,2656.9,2656.8,0.37662]
[1729582570326,3.58441,2657.0,2656.9,0.37662]
[1729582570724,6.9718,2657.0,2656.2,3.2078]
[1729582570924,0.37669,2656.4,2656.3,0.3767]
[1729582571123,1.45669,2656.4,2656.3,0.3767]
[1729582571429,4.8448,2656.4,2656.2,3.2078]
[1729582571625,1.08,2656.3,2656.2,3.58452]
[1729582571831,1.4567,2656.3,2656.2,3.2078]
[1729582572234,1.08,2656.3,2656.2,3.58452]
[1729582572427,1.08,2656.3,2656.2,4.66452]
[1729582573429,1.08,2656.3,2656.2,3.58452]
[1729582576326,1.08,2656.3,2656.2,0.37672]
[1729582576836,1.08,2656.3,2655.8,44.0078]
[1729582577138,1.08,2655.9,2655.8,45.46457]
[1729582578328,1.08,2655.9,2655.8,44.38457]
[1729582578529,1.08,2655.9,2655.8,4.66457]
[1729582578731,1.08,2655.9,2655.8,3.58457]
[1729582579535,1.08,2655.9,2655.5,40.8]
[1729582579536,1.45676,2655.9,2655.6,0.3768]
[1729582579730,1.45676,2655.9,2655.5,3.2078]
[1729582579731,1.08,2655.7,2655.5,3.2078]
[1729582579934,1.08,2655.6,2655.5,4.2878]
[1729582580137,1.08,2655.6,2655.5,4.66462]
[1729582583938,1.08,2655.7,2655.5,8.0534]
[1729582584242,1.08,2655.6,2655.5,4.66462]
[1729582584444,1.08,2655.6,2655.5,45.46462]
[1729582584638,1.08,2655.6,2655.5,49.23022]
[1729582585442,1.08,2655.6,2655.5,46.02242]
[1729582585944,1.08,2655.6,2655.5,49.23022]
[1729582586144,1.08,2655.6,2655.5,45.46462]
[1729582589339,1.08,2655.6,2655.5,44.38462]
[1729582590147,1.08,2655.6,2655.5,3.58462]
[1729582590938,1.08,2655.6,2655.5,0.37682]
[1729582591842,1.08,2655.6,2655.4,40.8]
[1729582592038,1.08,2655.5,2655.4,41.17683]
[1729582593250,1.45683,2655.5,2655.2,0.37686]
[1729582593439,1.08,2655.3,2655.1,3.2078]
[1729582593747,3.2078,2655.5,2655.1,4.66467]
[1729582593748,1.08,2655.2,2655.1,4.66467]
[1729582594249,1.45686,2655.2,2654.9,40.8]
[1729582594550,1.08,2655.3,2654.9,0.3769]
[1729582594551,1.08,2655.0,2654.9,0.3769]
[1729582594843,1.08,2655.0,2654.8,0.37691]
[1729582595053,1.08,2654.9,2654.8,40.8]
[1729582595246,1.08,2654.9,2654.7,0.37693]
[1729582595553,1.08,2654.8,2654.7,0.37693]
[1729582596244,1.08,2654.8,2654.4,3.2078]
[1729582596552,1.08,2654.5,2654.3,1.08]
[1729582596877,3.2078,2655.2,2654.3,1.08]
[1729582596878,1.08,2654.4,2654.3,1.08]
[1729582597050,1.08,2654.4,2654.3,0.37699]
[1729582597251,1.08,2654.4,2654.2,0.37699]
[1729582597450,3.2078,2654.9,2654.1,3.2078]
[1729582597648,0.37695,2654.6,2654.2,0.37699]
[1729582597853,1.08,2654.3,2654.2,0.37699]
[1729582598349,1.08,2654.3,2654.1,3.58481]
[1729582598546,1.08,2654.2,2654.1,3.58481]
[1729582600450,1.08,2654.2,2654.1,3.58482]
[1729582602753,1.08,2654.2,2654.1,0.37702]
[1729582603756,1.08,2654.2,2654.1,1.45702]
[1729582604142,1.08,2654.2,2654.1,0.37702]
[1729582618760,1.08,2654.2,2654.1,0.3793955]
[1729582619562,4.848,2654.2,2654.1,0.0023755]
[1729582619866,5.225,2654.2,2654.1,0.0023755]
[1729582620062,5.225,2654.2,2653.6,3.2078]
[1729582620063,6.801,2654.2,2653.6,3.2078]
[1729582620259,2.16,2653.7,2653.4,0.37711]
[1729582620564,1.08,2653.5,2653.4,0.37712]
[1729582622563,3.2078,2653.9,2653.6,0.37708]
[1729582622772,1.08,2653.7,2653.6,1.45709]
[1729582623067,3.2078,2653.9,2653.8,0.37706]
[1729582623966,1.08,2653.9,2653.8,0.37706]
[1729582625999,4.848,2653.9,2653.8,0.37706]
[1729582626171,1.08,2653.9,2653.8,0.37706]
[1729582627072,5.928,2653.9,2653.8,0.37706]
[1729582627570,5.928,2653.9,2653.5,3.2078]
[1729582627571,6.30505,2653.9,2653.5,3.2078]
[1729582627768,1.08,2653.6,2653.5,0.3771]
[1729582631366,1.08,2653.6,2653.5,3.5849]
[1729582631969,1.08,2653.6,2653.5,0.3771]
[1729582645786,0.37706,2653.8,2653.6,0.37707]
[1729582645986,1.08,2653.7,2653.6,0.37707]
[1729582647390,1.08,2653.7,2653.6,3.2078]
[1729582647585,3.2078,2654.4,2653.6,3.58489]
[1729582647888,3.2078,2654.4,2653.8,0.94263]
[1729582647889,0.894,2654.3,2653.8,0.94263]
[1729582648083,0.37701,2654.2,2654.1,0.37701]
[1729582648278,4.662,2654.3,2653.6,3.58489]
[1729582648485,4.662,2654.3,2654.2,0.377]
[1729582648486,1.271,2654.3,2654.2,0.377]
[1729582649089,6.1182,2654.3,2654.2,0.377]
[1729582650282,0.37701,2654.2,2654.1,0.37701]
[1729582650488,1.08,2654.2,2654.1,0.37701]
[1729582653095,1.457,2654.2,2654.1,0.37701]
[1729582653393,1.08,2654.2,2654.1,0.37701]
[1729582653597,1.457,2654.2,2654.1,0.37701]
[1729582659601,2.351,2654.2,2654.1,0.37701]
[1729582668012,1.991,2654.5,2654.4,0.37696]
[1729582668216,6.8382,2654.5,2654.4,0.37696]
[1729582668612,2.16,2654.5,2654.4,0.37696]
[1729582668808,1.08,2654.5,2654.4,0.37696]
[1729582673213,1.08,2654.5,2654.4,4.14416]
[1729582680318,3.2078,2655.0,2654.8,0.3769]
[1729582680518,3.2078,2655.0,2654.8,0.37692]
[1729582680519,1.08,2654.9,2654.8,0.37692]
[1729582681037,0.37682,2655.5,2655.2,0.37686]
[1729582681227,0.37683,2655.4,2655.2,0.37686]
[1729582681423,2.16,2655.3,2654.8,0.9423]
[1729582681619,1.08,2654.9,2654.8,0.37692]
[1729582682720,1.08,2654.9,2654.8,1.45692]
[1729582685022,1.08,2654.9,2654.8,5.22332]
[1729582685226,1.08,2655.1,2654.8,4.8464]
[1729582685427,1.08,2655.1,2655.0,1.45689]
[1729582685622,1.08,2655.2,2655.0,1.45689]
[1729582685825,1.08,2655.2,2654.9,3.2078]
[1729582685826,1.08,2655.2,2655.1,1.45687]
[1729582686524,1.08,2655.2,2655.1,5.22327]
[1729582687226,1.08,2655.3,2655.1,4.8464]
[1729582687432,1.08,2655.3,2655.2,4.66466]
[1729582688549,1.08,2655.5,2655.4,0.37683]
[1729582688733,1.08,2655.6,2655.5,0.37682]
[1729582690231,4.1188,2656.0,2655.5,41.88]
[1729582690232,1.08,2655.7,2655.5,41.88]
[1729582690427,1.08,2655.8,2655.7,0.37679]
[1729582691133,3.2078,2656.0,2655.7,1.08]
[1729582691336,3.2078,2656.0,2655.5,40.8]
[1729582691337,3.2078,2656.0,2655.9,0.37676]
[1729582691535,4.2878,2656.0,2655.9,0.37676]
[1729582692931,3.2078,2656.0,2655.9,0.37676]
[1729582693132,4.2878,2656.0,2655.9,0.37676]
[1729582693541,1.08,2656.0,2655.9,0.37676]
[1729582694036,1.08,2656.2,2655.9,1.08]
[1729582694242,0.91,2656.5,2656.1,1.08]
[1729582694438,0.91,2656.5,2656.0,1.08]
[1729582694633,1.28668,2656.5,2656.3,0.3767]
[1729582694938,0.91,2656.5,2656.4,0.37669]
[1729582695141,2.36667,2656.5,2656.4,0.37669]
[1729582695336,6.13147,2656.5,2656.4,0.37669]
[1729582695541,2.36667,2656.5,2656.4,0.37669]
[1729582696050,6.13147,2656.5,2656.4,0.37669]
[1729582696345,0.37669,2656.4,2656.3,0.37669]
[1729582696542,1.08,2656.4,2656.3,0.3767]
[1729582697035,1.45669,2656.4,2656.3,0.3767]
[1729582698641,1.08,2656.4,2656.3,0.3767]
[1729582701946,1.45669,2656.4,2656.3,0.3767]
[1729582702443,1.08,2656.4,2656.3,0.3767]
[1729582703741,1.45669,2656.4,2656.3,0.3767]
[1729582705145,1.08,2656.4,2656.3,0.3767]
[1729582705843,1.45669,2656.4,2656.3,0.3767]
[1729582706550,1.08,2656.4,2656.3,0.3767]
[1729582709752,1.45669,2656.4,2656.3,0.3767]
[1729582710837,1.45669,2656.4,2655.9,0.94188]
[1729582710838,4.50947,2656.6,2656.5,0.37667]
[1729582711059,5.58947,2656.6,2656.1,2.02182]
[1729582711239,1.08,2656.2,2656.1,1.45673]
[1729582732279,1.08,2656.2,2656.1,1.08]
[1729582732480,1.08,2656.2,2656.1,1.45673]
[1729582738382,1.983,2656.7,2656.2,0.9418]
[1729582738583,0.903,2656.7,2656.6,0.37666]
[1729582739780,1.983,2656.7,2656.6,0.37666]
[1729582765802,3.58443,2656.9,2656.8,0.37663]
[1729582766010,4.66443,2656.9,2656.8,0.37663]
[1729582766504,4.2878,2656.9,2656.8,0.37663]
[1729582768304,8.42842,2656.9,2656.8,0.37663]
[1729582769006,4.2878,2656.9,2656.8,0.37663]
[1729582769206,8.0518,2656.9,2656.8,0.37663]
[1729582770111,4.2878,2656.9,2656.8,0.37663]